Workbook

Sheet hod mincou
J2: 1
B3: Press F9 for the next round.
B5: PIP | C5: RRR | N5: Hody
B6: 10 | C6: 1 | N6: =INT(MOD(RAND(),2)*S6) -> 1 | O6: =IF(N6,Q6,R6) -> 90 | P6: =if -> 90 | Q6: =A12 -> 90 | R6: =A14 -> -110 | S6: =M12 -> 2
N7: =INT(MOD(RAND(),2)*S7) -> 0 | O7: =IF(N7,Q7,R7) -> -110 | P7: =O7+P6 -> -20 | Q7: =Q6 -> 90 | R7: =R6 -> -110 | S7: =S6 -> 2
A8: Lost | B8: =COUNTIF(N6:N2006, "0") -> 511 | C8: =B8/1000 -> 0.511 | N8: 0 | O8: -110 | P8: =O8+P7 -> -130 | Q8: =Q7 -> 90 | R8: =R7 -> -110 | S8: 2
A9: Win | B9: =COUNTIF(N6:N2006, "1") -> 490 | C9: =B9/1000 -> 0.49 | N9: 0 | O9: -110 | P9: -240 | Q9: 90 | R9: -110 | S9: 2
N10: 0 | O10: -110 | P10: -350 | Q10: 90 | R10: -110 | S10: 2
A11: zisk | K11: OBJEM | M11: WIN | N11: 1 | O11: 90 | P11: -260 | Q11: 90 | R11: -110 | S11: 2
A12: =B6*L12*C6-L12 -> 90 | H12: 100 | K12: =L12/10 -> 1 | L12: =H12/B6 -> 10 | M12: =J2/C6+1 -> 2 | N12: 1 | O12: 90 | P12: -170 | Q12: 90 | R12: -110 | S12: 2
A13: strata | N13: 1 | O13: 90 | P13: -80 | Q13: 90 | R13: -110 | S13: 2
A14: =-B6*L12*J2-L12 -> -110 | N14: 0 | O14: -110 | P14: -190 | Q14: 90 | R14: -110 | S14: 2
N15: 0 | O15: -110 | P15: -300 | Q15: 90 | R15: -110 | S15: 2
N16: 0 | O16: -110 | P16: -410 | Q16: 90 | R16: -110 | S16: 2
N17: 1 | O17: 90 | P17: -320 | Q17: 90 | R17: -110 | S17: 2
N18: 1 | O18: 90 | P18: -230 | Q18: 90 | R18: -110 | S18: 2
N19: 1 | O19: 90 | P19: -140 | Q19: 90 | R19: -110 | S19: 2
N20: 1 | O20: 90 | P20: -50 | Q20: 90 | R20: -110 | S20: 2
N21: 0 | O21: -110 | P21: -160 | Q21: 90 | R21: -110 | S21: 2
N22: 0 | O22: -110 | P22: -270 | Q22: 90 | R22: -110 | S22: 2
N23: 1 | O23: 90 | P23: -180 | Q23: 90 | R23: -110 | S23: 2
N24: 1 | O24: 90 | P24: -90 | Q24: 90 | R24: -110 | S24: 2
N25: 0 | O25: -110 | P25: -200 | Q25: 90 | R25: -110 | S25: 2
N26: 1 | O26: 90 | P26: -110 | Q26: 90 | R26: -110 | S26: 2
N27: 0 | O27: -110 | P27: -220 | Q27: =Q26 -> 90 | R27: -110 | S27: 2
N28: 1 | O28: 90 | P28: -130 | Q28: 90 | R28: -110 | S28: 2
N29: 0 | O29: -110 | P29: -240 | Q29: 90 | R29: -110 | S29: 2
L30: 0.01 | N30: 0 | O30: -110 | P30: -350 | Q30: 90 | R30: -110 | S30: 2
N31: 1 | O31: 90 | P31: -260 | Q31: 90 | R31: -110 | S31: 2
N32: 0 | O32: -110 | P32: -370 | Q32: 90 | R32: -110 | S32: 2
N33: 1 | O33: 90 | P33: -280 | Q33: 90 | R33: -110 | S33: 2
N34: 1 | O34: 90 | P34: -190 | Q34: 90 | R34: -110 | S34: 2
N35: 0 | O35: -110 | P35: -300 | Q35: 90 | R35: -110 | S35: 2
N36: 0 | O36: -110 | P36: -410 | Q36: 90 | R36: -110 | S36: 2
N37: 0 | O37: -110 | P37: -520 | Q37: 90 | R37: -110 | S37: 2
N38: 0 | O38: -110 | P38: -630 | Q38: 90 | R38: -110 | S38: 2
N39: 0 | O39: -110 | P39: -740 | Q39: 90 | R39: -110 | S39: 2
N40: 1 | O40: 90 | P40: -650 | Q40: 90 | R40: -110 | S40: 2
N41: 1 | O41: 90 | P41: -560 | Q41: 90 | R41: -110 | S41: 2
N42: 0 | O42: -110 | P42: -670 | Q42: 90 | R42: -110 | S42: 2
N43: 1 | O43: 90 | P43: -580 | Q43: 90 | R43: -110 | S43: 2
N44: 0 | O44: -110 | P44: -690 | Q44: 90 | R44: -110 | S44: 2
N45: 1 | O45: 90 | P45: -600 | Q45: 90 | R45: -110 | S45: 2
N46: 1 | O46: 90 | P46: -510 | Q46: 90 | R46: -110 | S46: 2
N47: 1 | O47: 90 | P47: -420 | Q47: 90 | R47: -110 | S47: 2
N48: 1 | O48: 90 | P48: -330 | Q48: 90 | R48: -110 | S48: 2
N49: 0 | O49: -110 | P49: -440 | Q49: 90 | R49: -110 | S49: 2
N50: 0 | O50: -110 | P50: -550 | Q50: 90 | R50: -110 | S50: 2
N51: 1 | O51: 90 | P51: -460 | Q51: 90 | R51: -110 | S51: 2
N52: 0 | O52: -110 | P52: -570 | Q52: 90 | R52: -110 | S52: 2
N53: 0 | O53: -110 | P53: -680 | Q53: 90 | R53: -110 | S53: 2
N54: 1 | O54: 90 | P54: -590 | Q54: 90 | R54: -110 | S54: 2
N55: 1 | O55: 90 | P55: -500 | Q55: 90 | R55: -110 | S55: 2
N56: 0 | O56: -110 | P56: -610 | Q56: 90 | R56: -110 | S56: 2
N57: 0 | O57: -110 | P57: -720 | Q57: 90 | R57: -110 | S57: 2
N58: 1 | O58: 90 | P58: -630 | Q58: 90 | R58: -110 | S58: 2
N59: 0 | O59: -110 | P59: -740 | Q59: 90 | R59: -110 | S59: 2
N60: 1 | O60: 90 | P60: -650 | Q60: 90 | R60: -110 | S60: 2
N61: 0 | O61: -110 | P61: -760 | Q61: 90 | R61: -110 | S61: 2
N62: 1 | O62: 90 | P62: -670 | Q62: 90 | R62: -110 | S62: 2
N63: 0 | O63: -110 | P63: -780 | Q63: 90 | R63: -110 | S63: 2
N64: 1 | O64: 90 | P64: -690 | Q64: 90 | R64: -110 | S64: 2
N65: 0 | O65: -110 | P65: -800 | Q65: 90 | R65: -110 | S65: 2
N66: 1 | O66: 90 | P66: -710 | Q66: 90 | R66: -110 | S66: 2
N67: 0 | O67: -110 | P67: -820 | Q67: 90 | R67: -110 | S67: 2
N68: 1 | O68: 90 | P68: -730 | Q68: 90 | R68: -110 | S68: 2
N69: 1 | O69: 90 | P69: -640 | Q69: 90 | R69: -110 | S69: 2
N70: 0 | O70: -110 | P70: -750 | Q70: 90 | R70: -110 | S70: 2
N71: =INT(MOD(RAND(),2)*S71) -> 1 | O71: =IF(N71,Q71,R71) -> 90 | P71: -660 | Q71: 90 | R71: -110 | S71: 2
N72: 1 | O72: 90 | P72: =O72+P71 -> -570 | Q72: =Q71 -> 90 | R72: =R71 -> -110 | S72: 2
N73: 1 | O73: 90 | P73: -480 | Q73: 90 | R73: -110 | S73: 2
N74: 0 | O74: -110 | P74: -590 | Q74: 90 | R74: -110 | S74: 2
N75: 1 | O75: 90 | P75: -500 | Q75: 90 | R75: -110 | S75: 2
N76: 1 | O76: 90 | P76: -410 | Q76: 90 | R76: -110 | S76: 2
N77: 0 | O77: -110 | P77: -520 | Q77: 90 | R77: -110 | S77: 2
N78: 0 | O78: -110 | P78: -630 | Q78: 90 | R78: -110 | S78: 2
N79: 1 | O79: 90 | P79: -540 | Q79: 90 | R79: -110 | S79: 2
N80: 0 | O80: -110 | P80: -650 | Q80: 90 | R80: -110 | S80: 2
N81: 1 | O81: 90 | P81: -560 | Q81: 90 | R81: -110 | S81: 2
N82: 0 | O82: -110 | P82: -670 | Q82: 90 | R82: -110 | S82: 2
N83: 0 | O83: -110 | P83: -780 | Q83: 90 | R83: -110 | S83: 2
N84: 0 | O84: -110 | P84: -890 | Q84: 90 | R84: -110 | S84: 2
N85: 1 | O85: 90 | P85: -800 | Q85: 90 | R85: -110 | S85: 2
N86: 0 | O86: -110 | P86: -910 | Q86: 90 | R86: -110 | S86: 2
N87: 1 | O87: 90 | P87: -820 | Q87: 90 | R87: -110 | S87: 2
N88: 1 | O88: 90 | P88: -730 | Q88: 90 | R88: -110 | S88: 2
N89: 0 | O89: -110 | P89: -840 | Q89: 90 | R89: -110 | S89: 2
N90: 0 | O90: -110 | P90: -950 | Q90: 90 | R90: -110 | S90: 2
N91: 1 | O91: 90 | P91: -860 | Q91: 90 | R91: -110 | S91: 2
N92: 1 | O92: 90 | P92: -770 | Q92: 90 | R92: -110 | S92: 2
N93: 1 | O93: 90 | P93: -680 | Q93: 90 | R93: -110 | S93: 2
N94: 0 | O94: -110 | P94: -790 | Q94: 90 | R94: -110 | S94: 2
N95: 1 | O95: 90 | P95: -700 | Q95: 90 | R95: -110 | S95: 2
N96: 0 | O96: -110 | P96: -810 | Q96: 90 | R96: -110 | S96: 2
N97: 0 | O97: -110 | P97: -920 | Q97: 90 | R97: -110 | S97: 2
N98: 0 | O98: -110 | P98: -1030 | Q98: 90 | R98: -110 | S98: 2
N99: 1 | O99: 90 | P99: -940 | Q99: 90 | R99: -110 | S99: 2
N100: 0 | O100: -110 | P100: -1050 | Q100: 90 | R100: -110 | S100: 2
N101: 1 | O101: 90 | P101: -960 | Q101: =Q100 -> 90 | R101: -110 | S101: 2
N102: 0 | O102: -110 | P102: -1070 | Q102: 90 | R102: -110 | S102: 2
N103: 0 | O103: -110 | P103: -1180 | Q103: 90 | R103: -110 | S103: 2
N104: 1 | O104: 90 | P104: -1090 | Q104: 90 | R104: -110 | S104: 2
N105: 1 | O105: 90 | P105: -1000 | Q105: 90 | R105: -110 | S105: 2
N106: 1 | O106: 90 | P106: -910 | Q106: 90 | R106: -110 | S106: 2
N107: 1 | O107: 90 | P107: -820 | Q107: 90 | R107: -110 | S107: 2
N108: 1 | O108: 90 | P108: -730 | Q108: 90 | R108: -110 | S108: 2
N109: 1 | O109: 90 | P109: -640 | Q109: 90 | R109: -110 | S109: 2
N110: 0 | O110: -110 | P110: -750 | Q110: 90 | R110: -110 | S110: 2
N111: 0 | O111: -110 | P111: -860 | Q111: 90 | R111: -110 | S111: 2
N112: 0 | O112: -110 | P112: -970 | Q112: 90 | R112: -110 | S112: 2
N113: 1 | O113: 90 | P113: -880 | Q113: 90 | R113: -110 | S113: 2
N114: 1 | O114: 90 | P114: -790 | Q114: 90 | R114: -110 | S114: 2
N115: 1 | O115: 90 | P115: -700 | Q115: 90 | R115: -110 | S115: 2
N116: 0 | O116: -110 | P116: -810 | Q116: 90 | R116: -110 | S116: 2
N117: 1 | O117: 90 | P117: -720 | Q117: 90 | R117: -110 | S117: 2
N118: 1 | O118: 90 | P118: -630 | Q118: 90 | R118: -110 | S118: 2
N119: 0 | O119: -110 | P119: -740 | Q119: 90 | R119: -110 | S119: 2
N120: 1 | O120: 90 | P120: -650 | Q120: 90 | R120: -110 | S120: 2
N121: 0 | O121: -110 | P121: -760 | Q121: 90 | R121: -110 | S121: 2
N122: 0 | O122: -110 | P122: -870 | Q122: 90 | R122: -110 | S122: 2
N123: 0 | O123: -110 | P123: -980 | Q123: 90 | R123: -110 | S123: 2
N124: 0 | O124: -110 | P124: -1090 | Q124: 90 | R124: -110 | S124: 2
N125: 0 | O125: -110 | P125: -1200 | Q125: 90 | R125: -110 | S125: 2
N126: 0 | O126: -110 | P126: -1310 | Q126: 90 | R126: -110 | S126: 2
N127: 0 | O127: -110 | P127: -1420 | Q127: 90 | R127: -110 | S127: 2
N128: 0 | O128: -110 | P128: -1530 | Q128: 90 | R128: -110 | S128: 2
N129: 1 | O129: 90 | P129: -1440 | Q129: 90 | R129: -110 | S129: 2
N130: 1 | O130: 90 | P130: -1350 | Q130: 90 | R130: -110 | S130: 2
N131: 0 | O131: -110 | P131: -1460 | Q131: 90 | R131: -110 | S131: 2
N132: 1 | O132: 90 | P132: -1370 | Q132: 90 | R132: -110 | S132: 2
N133: 0 | O133: -110 | P133: -1480 | Q133: 90 | R133: -110 | S133: 2
N134: 0 | O134: -110 | P134: -1590 | Q134: 90 | R134: -110 | S134: 2
N135: =INT(MOD(RAND(),2)*S135) -> 0 | O135: =IF(N135,Q135,R135) -> -110 | P135: -1700 | Q135: 90 | R135: -110 | S135: 2
N136: 1 | O136: 90 | P136: =O136+P135 -> -1610 | Q136: =Q135 -> 90 | R136: -110 | S136: 2
N137: 1 | O137: 90 | P137: -1520 | Q137: 90 | R137: -110 | S137: 2
N138: 1 | O138: 90 | P138: -1430 | Q138: 90 | R138: -110 | S138: 2
N139: 0 | O139: -110 | P139: -1540 | Q139: 90 | R139: -110 | S139: 2
N140: 1 | O140: 90 | P140: -1450 | Q140: 90 | R140: -110 | S140: 2
N141: 0 | O141: -110 | P141: -1560 | Q141: 90 | R141: -110 | S141: 2
N142: 0 | O142: -110 | P142: -1670 | Q142: 90 | R142: -110 | S142: 2
N143: 0 | O143: -110 | P143: -1780 | Q143: 90 | R143: -110 | S143: 2
N144: 1 | O144: 90 | P144: -1690 | Q144: 90 | R144: -110 | S144: 2
N145: 1 | O145: 90 | P145: -1600 | Q145: 90 | R145: -110 | S145: 2
N146: 1 | O146: 90 | P146: -1510 | Q146: 90 | R146: -110 | S146: 2
N147: 0 | O147: -110 | P147: -1620 | Q147: 90 | R147: -110 | S147: 2
N148: 1 | O148: 90 | P148: -1530 | Q148: 90 | R148: -110 | S148: 2
N149: 0 | O149: -110 | P149: -1640 | Q149: 90 | R149: -110 | S149: 2
N150: 0 | O150: -110 | P150: -1750 | Q150: 90 | R150: -110 | S150: 2
N151: 1 | O151: 90 | P151: -1660 | Q151: 90 | R151: -110 | S151: 2
N152: 1 | O152: 90 | P152: -1570 | Q152: 90 | R152: -110 | S152: 2
N153: 0 | O153: -110 | P153: -1680 | Q153: 90 | R153: -110 | S153: 2
N154: 1 | O154: 90 | P154: -1590 | Q154: 90 | R154: -110 | S154: 2
N155: 0 | O155: -110 | P155: -1700 | Q155: 90 | R155: -110 | S155: 2
N156: 0 | O156: -110 | P156: -1810 | Q156: 90 | R156: -110 | S156: 2
N157: 0 | O157: -110 | P157: -1920 | Q157: 90 | R157: -110 | S157: 2
N158: 0 | O158: -110 | P158: -2030 | Q158: 90 | R158: -110 | S158: 2
N159: 0 | O159: -110 | P159: -2140 | Q159: 90 | R159: -110 | S159: 2
N160: 0 | O160: -110 | P160: -2250 | Q160: 90 | R160: -110 | S160: 2
N161: 1 | O161: 90 | P161: -2160 | Q161: 90 | R161: -110 | S161: 2
N162: 1 | O162: 90 | P162: -2070 | Q162: 90 | R162: -110 | S162: 2
N163: 1 | O163: 90 | P163: -1980 | Q163: 90 | R163: -110 | S163: 2
N164: 0 | O164: -110 | P164: -2090 | Q164: 90 | R164: -110 | S164: 2
N165: 1 | O165: 90 | P165: -2000 | Q165: 90 | R165: -110 | S165: 2
N166: 0 | O166: -110 | P166: -2110 | Q166: 90 | R166: -110 | S166: 2
N167: 0 | O167: -110 | P167: -2220 | Q167: 90 | R167: -110 | S167: 2
N168: 1 | O168: 90 | P168: -2130 | Q168: 90 | R168: -110 | S168: 2
N169: 0 | O169: -110 | P169: -2240 | Q169: 90 | R169: -110 | S169: 2
N170: 0 | O170: -110 | P170: -2350 | Q170: 90 | R170: -110 | S170: 2
N171: 1 | O171: 90 | P171: -2260 | Q171: 90 | R171: -110 | S171: 2
N172: 1 | O172: 90 | P172: -2170 | Q172: 90 | R172: -110 | S172: 2
N173: 0 | O173: -110 | P173: -2280 | Q173: 90 | R173: -110 | S173: 2
N174: 1 | O174: 90 | P174: -2190 | Q174: 90 | R174: -110 | S174: 2
N175: 1 | O175: 90 | P175: -2100 | Q175: 90 | R175: -110 | S175: 2
N176: 1 | O176: 90 | P176: -2010 | Q176: 90 | R176: -110 | S176: 2
N177: 1 | O177: 90 | P177: -1920 | Q177: 90 | R177: -110 | S177: 2
N178: 0 | O178: -110 | P178: -2030 | Q178: 90 | R178: -110 | S178: 2
N179: 0 | O179: -110 | P179: -2140 | Q179: 90 | R179: -110 | S179: 2
N180: 0 | O180: -110 | P180: -2250 | Q180: 90 | R180: -110 | S180: 2
N181: 0 | O181: -110 | P181: -2360 | Q181: 90 | R181: -110 | S181: 2
N182: 0 | O182: -110 | P182: -2470 | Q182: 90 | R182: -110 | S182: 2
N183: 1 | O183: 90 | P183: -2380 | Q183: 90 | R183: -110 | S183: 2
N184: 1 | O184: 90 | P184: -2290 | Q184: 90 | R184: -110 | S184: 2
N185: 0 | O185: -110 | P185: -2400 | Q185: 90 | R185: -110 | S185: 2
N186: 0 | O186: -110 | P186: -2510 | Q186: 90 | R186: -110 | S186: 2
N187: 1 | O187: 90 | P187: -2420 | Q187: 90 | R187: -110 | S187: 2
N188: 0 | O188: -110 | P188: -2530 | Q188: 90 | R188: -110 | S188: 2
N189: 0 | O189: -110 | P189: -2640 | Q189: 90 | R189: -110 | S189: 2
N190: 1 | O190: 90 | P190: -2550 | Q190: 90 | R190: -110 | S190: 2
N191: 0 | O191: -110 | P191: -2660 | Q191: 90 | R191: -110 | S191: 2
N192: 0 | O192: -110 | P192: -2770 | Q192: 90 | R192: -110 | S192: 2
N193: 0 | O193: -110 | P193: -2880 | Q193: 90 | R193: -110 | S193: 2
N194: 0 | O194: -110 | P194: -2990 | Q194: 90 | R194: -110 | S194: 2
N195: 1 | O195: 90 | P195: -2900 | Q195: 90 | R195: -110 | S195: 2
N196: 0 | O196: -110 | P196: -3010 | Q196: 90 | R196: -110 | S196: 2
N197: 1 | O197: 90 | P197: -2920 | Q197: 90 | R197: -110 | S197: 2
N198: 0 | O198: -110 | P198: -3030 | Q198: 90 | R198: -110 | S198: 2
N199: =INT(MOD(RAND(),2)*S199) -> 1 | O199: =IF(N199,Q199,R199) -> 90 | P199: -2940 | Q199: 90 | R199: -110 | S199: 2
N200: 0 | O200: -110 | P200: =O200+P199 -> -3050 | Q200: =Q199 -> 90 | R200: -110 | S200: 2
N201: 1 | O201: 90 | P201: -2960 | Q201: 90 | R201: -110 | S201: 2
N202: 1 | O202: 90 | P202: -2870 | Q202: 90 | R202: -110 | S202: 2
... 804 more rows
